bitfinex/quotes_SOLUSD_20240814
["timestamp","ask_amount","ask_price","bid_price","bid_amount"]
[1723649338155,20.0,145.23,145.14,6.3272]
[1723649340026,40.0,145.23,145.14,6.3272]
[1723649340518,20.0,145.21,145.14,6.3272]
[1723649341307,20.0,145.19,145.14,6.3272]
[1723649341609,20.0,145.17,145.12,16.1228]
[1723649341827,48.18098,145.18,145.12,16.1228]
[1723649342238,48.05549,145.18,145.12,16.1228]
[1723649342609,47.93,145.18,145.12,16.1228]
[1723649342833,0.25098,145.2,145.12,16.1228]
[1723649343036,48.05549,145.21,145.12,16.1228]
[1723649343612,0.12549,145.21,145.12,16.1228]
[1723649343836,67.93,145.25,145.12,16.1228]
[1723649344006,67.93,145.25,145.13,45.0]
[1723649344335,20.0,145.23,145.12,16.1228]
[1723649344518,40.0,145.23,145.12,16.1228]
[1723649344720,20.0,145.23,145.12,16.1228]
[1723649344933,96.71233662,145.25,145.12,16.1228]
[1723649345113,20.0,145.23,145.12,16.1228]
[1723649345516,96.71233662,145.25,145.12,16.1228]
[1723649345711,47.93,145.25,145.13,6.3332]
[1723649345910,20.0,145.27,145.13,6.3332]
[1723649346122,20.0,145.27,145.14,92.93]
[1723649346632,47.93,145.28,145.14,92.93]
[1723649346931,47.93,145.28,145.15,6.0064]
[1723649347115,20.0,145.26,145.15,6.0064]
[1723649347325,76.71233662,145.28,145.15,6.0064]
[1723649347931,2.74815612,145.29,145.17,15.2264]
[1723649348105,421.7,145.3,145.17,15.2264]
[1723649348931,40.0,145.3,145.17,15.2264]
[1723649349240,76.71233662,145.32,145.18,6.1408]
[1723649349410,20.0,145.32,145.19,6.1408]
[1723649349737,20.0,145.32,145.2,45.0]
[1723649350533,0.2129984,145.33,145.21,15.2264]
[1723649350740,0.2129984,145.33,145.22,51.4593]
[1723649351331,67.93,145.32,145.22,6.4593]
[1723649351520,20.0,145.3,145.22,6.4593]
[1723649351815,67.93,145.29,145.22,6.4593]
[1723649352025,39.9,145.28,145.22,6.4593]
[1723649353540,39.9,145.26,145.22,6.4593]
[1723649354032,39.9,145.28,145.22,6.4593]
[1723649354408,59.9,145.28,145.22,6.4593]
[1723649355631,39.9,145.28,145.22,6.4593]
[1723649355862,39.9,145.3,145.22,6.4593]
[1723649356135,39.9,145.29,145.22,6.4593]
[1723649356315,59.9,145.27,145.22,6.4593]
[1723649356539,79.9,145.27,145.22,6.4593]
[1723649356923,39.9,145.25,145.22,6.4593]
[1723649357520,59.9,145.25,145.22,6.4593]
[1723649357934,39.9,145.25,145.22,6.4593]
[1723649358136,40.0,145.27,145.22,6.4593]
[1723649358137,39.9,145.27,145.22,6.4593]
[1723649358448,59.9,145.27,145.22,6.4593]
[1723649359257,20.12549,145.28,145.15,15.7489]
[1723649359258,59.9,145.23,145.15,15.7489]
[1723649359450,20.0,145.19,145.15,15.7489]
[1723649359649,39.9,145.2,145.15,15.7489]
[1723649359827,40.02549,145.22,145.15,15.7489]
[1723649360026,39.9,145.2,145.15,15.7489]
[1723649360253,39.9,145.18,145.15,15.7489]
[1723649360743,39.9,145.2,145.15,15.7489]
[1723649361053,59.9,145.2,145.15,15.7489]
[1723649361653,39.9,145.2,145.15,15.7489]
[1723649363148,39.9,145.18,145.15,15.7489]
[1723649363659,39.9,145.16,145.13,6.2636]
[1723649364338,401.7,145.24,145.13,6.2636]
[1723649364558,39.9,145.24,145.13,6.2636]
[1723649365057,59.9,145.24,145.13,6.2636]
[1723649365269,39.9,145.2,145.13,6.2636]
[1723649366633,39.9,145.18,145.13,6.2636]
[1723649368057,39.9,145.2,145.13,6.2636]
[1723649368466,39.9,145.18,145.13,6.2636]
[1723649368655,39.9,145.22,145.13,6.2636]
[1723649368955,20.0,145.22,145.13,6.2636]
[1723649369255,39.9,145.18,145.13,6.2636]
[1723649369462,39.9,145.2,145.13,6.2636]
[1723649369757,401.7,145.25,145.13,6.2636]
[1723649369938,20.12549,145.25,145.13,6.2636]
[1723649370255,39.9,145.19,145.13,6.2636]
[1723649370760,39.9,145.21,145.13,6.2636]
[1723649371230,39.9,145.24,145.13,6.2636]
[1723649371643,20.0,145.26,145.13,6.2636]
[1723649371644,39.9,145.26,145.14,45.25098]
[1723649371865,39.9,145.26,145.16,22.5465]
[1723649372067,20.0,145.29,145.16,22.5465]
[1723649372273,39.9,145.27,145.16,22.5465]
[1723649372642,20.0,145.29,145.17,45.0]
[1723649372842,39.9,145.29,145.18,0.34719856]
[1723649373073,39.9,145.29,145.17,45.0]
[1723649373375,39.9,145.26,145.17,45.0]
[1723649373544,39.9,145.26,145.16,22.5465]
[1723649373741,39.9,145.28,145.17,45.0]
[1723649373967,59.9,145.3,145.18,6.4457]
[1723649374137,59.9,145.3,145.19,45.0]
[1723649374339,39.9,145.28,145.18,6.4457]
[1723649374542,39.9,145.28,145.19,45.0]
[1723649374846,39.9,145.28,145.18,6.4457]
[1723649375050,39.9,145.3,145.2,21.6472]
[1723649375259,20.2129984,145.33,145.21,45.0]
[1723649375260,39.9,145.32,145.21,45.0]
[1723649376279,39.9,145.32,145.22,6.52039]
[1723649376446,0.2129984,145.33,145.23,45.0]
[1723649376779,0.2129984,145.33,145.24,0.12549]
[1723649377366,0.2129984,145.33,145.23,45.12549]
[1723649378265,0.2129984,145.33,145.24,0.12549]
[1723649378860,0.2129984,145.33,145.23,45.12549]
[1723649379560,0.2129984,145.33,145.25,15.6884]
[1723649379876,0.2129984,145.33,145.26,45.0]
[1723649380264,0.2129984,145.33,145.25,15.6884]
[1723649380766,0.2129984,145.33,145.26,45.0]
[1723649380969,0.2129984,145.33,145.25,15.6884]
[1723649381753,0.2129984,145.33,145.26,45.0]
[1723649382276,20.0,145.42,145.29,6.0041]
[1723649382481,59.9,145.42,145.31,6.0041]
[1723649382667,39.9,145.44,145.31,6.0041]
[1723649382861,39.9,145.44,145.32,45.12549]
[1723649383172,59.9,145.4,145.32,0.12549]
[1723649383350,39.9,145.38,145.31,6.0041]
[1723649383977,39.9,145.4,145.31,6.0041]
[1723649385866,39.9,145.42,145.31,6.0041]
[1723649386087,39.9,145.42,145.33,16.4119]
[1723649386386,39.9,145.44,145.33,16.4119]
[1723649386587,39.9,145.44,145.35,6.0041]
[1723649387266,39.9,145.46,145.35,6.0041]
[1723649387689,59.9,145.46,145.36,45.0]
[1723649387891,59.9,145.46,145.35,6.0041]
[1723649388068,39.9,145.46,145.35,6.0041]
[1723649389071,20.12549,145.45,145.35,6.0041]
[1723649389264,0.12549,145.43,145.35,6.0041]
[1723649389470,39.9,145.4,145.35,6.0041]
[1723649391399,39.9,145.42,145.35,6.0041]
[1723649391570,39.9,145.44,145.35,6.0041]
[1723649391884,59.9,145.44,145.35,6.0041]
[1723649392884,59.9,145.42,145.35,6.0041]
[1723649393088,39.9,145.4,145.35,6.0041]
[1723649395676,40.02549,145.42,145.35,6.0041]
[1723649395890,39.9,145.42,145.35,6.0041]
[1723649396103,39.9,145.44,145.35,6.0041]
[1723649398188,59.9,145.44,145.35,6.0041]
[1723649398686,39.9,145.44,145.35,6.0041]
[1723649400075,59.9,145.44,145.35,6.0041]
[1723649400276,0.12549,145.43,145.35,6.0041]
[1723649400475,39.9,145.44,145.35,6.0041]
[1723649400677,39.9,145.46,145.35,6.0041]
[1723649400875,39.9,145.46,145.36,45.0]
[1723649401177,39.9,145.46,145.37,21.7878]
[1723649401379,0.820964,145.48,145.38,45.0]
[1723649401380,43.39928571,145.48,145.38,45.0]
[1723649401589,60.720964,145.48,145.38,6.0074]
[1723649401791,60.720964,145.48,145.39,45.0]
[1723649401792,0.820964,145.48,145.39,45.0]
[1723649404200,0.820964,145.48,145.38,6.0074]
[1723649404410,0.820964,145.48,145.4,45.0]
[1723649404704,0.820964,145.48,145.39,45.12549]
[1723649404904,0.820964,145.48,145.38,6.0074]
[1723649405069,39.9,145.45,145.38,6.0074]
[1723649405279,0.820964,145.48,145.38,6.0074]
[1723649405674,0.12549,145.47,145.38,6.0074]
[1723649405873,40.15098,145.47,145.38,6.0074]
[1723649406103,0.820964,145.48,145.38,6.0074]
[1723649407184,0.820964,145.48,145.4,6.5632]
[1723649407385,0.820964,145.48,145.42,15.7872]
[1723649407700,0.820964,145.48,145.43,6.5632]
[1723649407899,0.820964,145.48,145.43,51.5632]
[1723649408592,0.820964,145.48,145.43,6.5632]
[1723649408792,39.9,145.46,145.43,6.5632]
[1723649414908,0.820964,145.48,145.43,6.5632]
[1723649415220,39.9,145.56,145.45,6.1239]
[1723649415396,42.24255936,145.58,145.46,60.74977]
[1723649415584,39.9,145.54,145.46,60.3733]
[1723649415786,39.9,145.48,145.45,6.1239]
[1723649416211,39.9,145.46,145.42,16.3944]
[1723649416417,39.9,145.44,145.41,6.5766]
[1723649416606,39.9,145.42,145.37,21.4081]
[1723649416794,39.9,145.44,145.37,21.4081]
[1723649418015,2.36774272,145.46,145.37,21.4081]
[1723649418016,39.9,145.46,145.37,21.4081]
[1723649418592,39.9,145.48,145.37,21.4081]
[1723649418902,39.9,145.42,145.37,21.4081]
[1723649419110,39.9,145.4,145.37,21.4081]
[1723649420028,39.9,145.44,145.37,21.4081]
[1723649420694,39.9,145.46,145.37,21.4081]
[1723649420893,59.9,145.44,145.37,21.4081]
[1723649421114,39.9,145.42,145.37,21.4081]
[1723649422090,39.9,145.44,145.37,21.4081]
[1723649422918,39.9,145.46,145.37,21.4081]
[1723649423123,39.9,145.43,145.37,21.4081]
[1723649423918,31.85,145.44,145.37,21.4081]
[1723649424137,31.85,145.46,145.38,45.0]
[1723649424334,31.85,145.47,145.38,45.0]
[1723649427233,31.85,145.53,145.41,21.325]
[1723649427540,15.7992,145.59,145.41,21.325]
[1723649427541,31.85,145.51,145.41,21.325]
[1723649427868,31.85,145.51,145.42,45.0]
[1723649428431,31.85,145.51,145.41,21.325]
[1723649428432,31.85,145.49,145.41,21.325]
[1723649428631,31.85,145.45,145.41,21.325]
[1723649429042,31.85,145.43,145.37,22.7838]
[1723649429339,31.85,145.41,145.37,22.7838]
[1723649432144,39.82,145.42,145.37,22.7838]
[1723649433454,39.82,145.4,145.33,6.0226]
[1723649433837,39.82,145.44,145.33,6.0226]
[1723649434240,39.82,145.46,145.33,6.0226]
[1723649434437,39.82,145.46,145.34,0.12549]
[1723649434647,39.82,145.42,145.33,6.0226]
[1723649435030,39.82,145.4,145.33,6.0226]
[1723649436129,39.82,145.42,145.33,6.0226]
[1723649436351,39.82,145.42,145.34,45.0]
[1723649436553,39.82,145.42,145.33,6.0226]
[1723649437348,59.82,145.46,145.34,45.12549]
[1723649437349,39.82,145.46,145.34,45.12549]
[1723649437556,39.82,145.5,145.38,0.12549]
[1723649437727,39.82,145.5,145.39,6.1308]
[1723649438238,281.28941472,145.52,145.4,45.25098]
[1723649438553,2.43377861,145.54,145.41,16.5155]
[1723649438753,59.82,145.53,145.42,45.25098]
[1723649438942,39.82,145.51,145.42,45.25098]
[1723649439138,39.82,145.51,145.41,16.5155]
[1723649439458,39.82,145.51,145.42,45.0]
[1723649439847,39.82,145.51,145.43,6.147]
[1723649440157,39.82,145.53,145.44,45.0]
[1723649440337,39.82,145.55,145.44,45.0]
[1723649440739,39.82,145.53,145.44,45.0]
[1723649441137,39.82,145.53,145.43,6.147]
[1723649441343,39.82,145.53,145.44,45.0]
[1723649442963,39.82,145.51,145.43,6.147]
[1723649443160,39.82,145.49,145.43,6.147]
[1723649445252,20.0,145.42,145.34,15.1511]
[1723649445457,39.82,145.38,145.35,30.0]
[1723649445651,39.82,145.38,145.34,15.1511]
[1723649445958,39.82,145.4,145.34,15.1511]
[1723649446760,20.0,145.44,145.34,15.1511]
[1723649446962,39.82,145.44,145.34,15.1511]
[1723649447430,39.82,145.42,145.34,15.1511]
[1723649448665,39.82,145.44,145.34,15.1511]
[1723649449039,39.82,145.44,145.35,45.0]
[1723649450144,39.82,145.44,145.36,0.37647]
[1723649450350,39.82,145.44,145.36,0.12549]
[1723649451152,39.82,145.44,145.36,0.37647]
[1723649452059,39.82,145.48,145.38,0.12549]
[1723649452268,39.82,145.48,145.38,45.50196]
[1723649452451,39.82,145.46,145.38,45.37647]
[1723649452639,39.82,145.46,145.38,45.0]
[1723649452840,39.82,145.46,145.37,6.3393]
[1723649453056,39.82,145.5,145.4,0.12549]
[1723649453257,39.82,145.5,145.4,0.25098]
[1723649454064,9.10480884,145.56,145.43,6.3393]
[1723649454251,59.82,145.6,145.46,0.12549]
[1723649454459,39.82,145.57,145.47,16.4768]
[1723649454772,39.82,145.57,145.48,45.0]
[1723649455872,39.82,145.57,145.49,45.0]
[1723649456182,39.82,145.6,145.49,6.5046]
[1723649456475,39.82,145.6,145.5,45.37647]
[1723649457044,40.640964,145.62,145.5,45.37647]
[1723649457871,40.640964,145.62,145.51,0.12549]
[1723649458275,40.640964,145.62,145.5,45.37647]
[1723649458662,39.82,145.54,145.49,6.5046]
[1723649459046,39.82,145.5,145.49,6.5046]
[1723649459466,39.82,145.5,145.45,6.5046]
[1723649459671,39.82,145.48,145.45,6.5046]
[1723649460542,39.82,145.46,145.42,15.9164]
[1723649460771,39.82,145.43,145.41,6.5046]
[1723649461181,39.82,145.43,145.38,15.9164]
[1723649461473,39.82,145.46,145.37,6.5046]
[1723649461880,39.82,145.48,145.37,6.5046]
[1723649462085,39.82,145.5,145.38,16.3821]
[1723649462587,39.82,145.5,145.39,6.6231]
[1723649462998,39.82,145.5,145.4,0.12549]
[1723649463181,39.82,145.5,145.4,45.50196]
[1723649463793,39.82,145.52,145.39,6.6231]
[1723649463994,39.82,145.5,145.39,6.6231]
[1723649464295,47.74,145.49,145.39,6.6231]
[1723649464700,47.74,145.46,145.39,6.6231]
[1723649465282,47.74,145.43,145.39,6.6231]
[1723649466387,47.74,145.46,145.39,6.6231]
[1723649467376,47.74,145.49,145.39,6.6231]
[1723649467605,47.74,145.49,145.4,45.0]
[1723649468587,47.74,145.49,145.39,6.6231]
[1723649469191,47.74,145.49,145.4,45.0]
[1723649469391,47.15651688,145.54,145.4,45.0]
[1723649469596,20.0,145.52,145.41,0.37647]
[1723649469802,20.0,145.52,145.41,0.25098]
[1723649470008,20.0,145.52,145.4,45.0]
[1723649470200,47.74,145.49,145.4,45.0]
[1723649472290,47.74,145.49,145.41,0.37647]
[1723649472614,47.74,145.49,145.4,45.0]
[1723649473185,47.74,145.53,145.41,0.37647]
[1723649473910,67.74,145.53,145.41,0.37647]
[1723649474299,0.12549,145.52,145.41,0.25098]
[1723649474495,0.12549,145.52,145.4,45.0]
[1723649475617,47.74,145.53,145.4,45.0]
[1723649475818,47.74,145.53,145.42,16.3695]
[1723649476017,47.74,145.53,145.44,6.2373]
[1723649476209,47.74,145.56,145.45,0.37647]
[1723649476416,47.74,145.56,145.45,45.37647]
[1723649476590,47.74,145.56,145.46,21.2994]
[1723649476798,47.74,145.56,145.47,45.12549]
[1723649477030,53.9773,145.59,145.47,45.12549]
[1723649477206,47.74,145.59,145.5,15.3964]
[1723649477408,47.74,145.59,145.51,45.0]
[1723649477805,48.560964,145.62,145.52,6.37779]
[1723649478006,48.560964,145.62,145.53,45.25098]
[1723649478331,48.560964,145.62,145.54,0.12549]
[1723649478332,0.820964,145.62,145.54,0.12549]
[1723649478812,0.820964,145.62,145.54,0.25098]
[1723649479120,0.820964,145.62,145.57,6.4425]
[1723649480534,48.560964,145.62,145.57,6.4425]
[1723649480718,47.74,145.59,145.57,6.4425]
[1723649480896,47.74,145.59,145.45,6.3305]
[1723649481099,47.74,145.56,145.45,6.3305]
[1723649482201,47.74,145.53,145.45,6.3305]
[1723649482402,47.74,145.5,145.45,6.3305]
[1723649483094,47.74,145.53,145.45,6.3305]
[1723649484009,47.74,145.56,145.46,0.12549]
[1723649484197,47.74,145.56,145.46,0.25098]
[1723649484602,47.74,145.56,145.47,0.12549]
[1723649484832,47.74,145.56,145.48,0.12549]
[1723649485201,47.74,145.59,145.48,0.12549]
[1723649487040,47.74,145.59,145.47,0.37647]
[1723649487041,47.74,145.56,145.47,0.37647]
[1723649487903,47.74,145.56,145.47,0.12549]
[1723649488346,47.74,145.53,145.45,6.3305]
[1723649489938,47.74,145.53,145.46,0.12549]
[1723649490110,47.74,145.53,145.45,6.3305]
[1723649490937,0.12549,145.49,145.45,6.3305]
[1723649492425,0.12549,145.49,145.45,6.3305]
[1723649492617,47.74,145.5,145.45,6.3305]
[1723649492935,0.12549,145.52,145.45,6.3305]
[1723649493134,20.12549,145.52,145.45,6.3305]
[1723649493328,40.12549,145.52,145.45,6.3305]
[1723649493722,20.12549,145.52,145.45,6.3305]
[1723649494109,70.38044069,145.53,145.45,6.3305]
[1723649494332,47.86549,145.53,145.45,6.3305]
[1723649494709,67.86549,145.53,145.45,6.3305]
[1723649495135,47.86549,145.53,145.45,6.3305]
[1723649495339,47.74,145.53,145.45,6.3305]
[1723649495519,67.74,145.56,145.46,45.12549]
[1723649496324,47.74,145.56,145.46,45.12549]
[1723649497139,0.12549,145.55,145.46,45.12549]
[1723649497341,47.74,145.53,145.45,6.3305]
[1723649498335,47.74,145.53,145.46,45.0]
[1723649498722,47.74,145.53,145.45,6.3305]
[1723649499838,47.74,145.53,145.46,45.12549]
[1723649500339,47.74,145.56,145.46,45.12549]
[1723649500746,258.9,145.58,145.48,0.12549]
[1723649500917,47.74,145.6,145.49,22.7999]
[1723649501237,47.74,145.6,145.5,45.37647]
[1723649501644,47.74,145.6,145.51,0.12549]
[1723649501829,0.820964,145.62,145.52,6.4113]
[1723649502026,0.820964,145.62,145.53,45.50196]
[1723649503146,0.820964,145.62,145.54,15.8423]
[1723649503439,0.820964,145.62,145.55,0.25098]
[1723649503747,0.820964,145.62,145.54,15.8423]
[1723649504125,47.74,145.6,145.54,15.8423]
[1723649504845,0.820964,145.62,145.54,15.8423]
[1723649505037,0.820964,145.62,145.55,45.12549]
[1723649505636,0.820964,145.62,145.56,0.12549]
[1723649505832,0.820964,145.62,145.57,0.12549]
[1723649506028,0.820964,145.62,145.58,6.0343]
[1723649510625,0.820964,145.62,145.59,45.25098]
[1723649511134,0.820964,145.62,145.59,0.12549]
[1723649511449,0.820964,145.62,145.58,6.0343]
[1723649511850,0.820964,145.62,145.54,15.8423]
[1723649511851,47.86549,145.61,145.54,22.4723]
[1723649512226,67.86549,145.61,145.54,22.4723]
[1723649512649,47.74,145.58,145.54,22.4723]
[1723649513529,47.74,145.58,145.5,21.7395]
[1723649513530,47.74,145.55,145.5,21.7395]
[1723649518048,47.74,145.58,145.5,21.7395]
[1723649518356,47.74,145.58,145.51,45.12549]
[1723649519258,47.74,145.61,145.51,45.12549]
[1723649519561,47.74,145.61,145.52,0.12549]
[1723649519738,47.74,145.61,145.51,45.12549]
[1723649520438,47.74,145.61,145.52,0.12549]
[1723649521627,0.25098,145.6,145.51,45.12549]
[1723649521828,20.25098,145.6,145.5,21.7395]
[1723649522571,0.25098,145.6,145.5,21.7395]
[1723649522734,20.12549,145.6,145.5,21.7395]
[1723649523662,0.37647,145.59,145.5,21.7395]
[1723649523845,0.12549,145.58,145.5,21.7395]
[1723649524035,20.0,145.6,145.5,21.7395]
[1723649524240,47.86549,145.61,145.5,21.7395]
[1723649524442,47.74,145.61,145.5,21.7395]
[1723649524751,47.74,145.61,145.51,45.37647]
[1723649524927,47.74,145.61,145.52,0.12549]
[1723649525846,0.820964,145.62,145.52,0.12549]
[1723649526755,0.820964,145.62,145.55,0.12549]
[1723649526930,0.820964,145.62,145.56,16.1849]
[1723649527137,0.820964,145.62,145.57,0.37647]
[1723649527361,0.820964,145.62,145.57,45.37647]
[1723649527566,0.820964,145.62,145.58,0.12549]
[1723649527751,0.820964,145.62,145.59,6.5491]
[1723649527959,0.820964,145.62,145.6,45.50196]
[1723649528162,42.72904009,145.72,145.6,45.50196]
[1723649528364,47.74,145.7,145.6,45.37647]
[1723649528546,51.3277156,145.72,145.59,6.5491]
[1723649528547,59.68,145.68,145.59,6.5491]
[1723649528747,59.68,145.68,145.56,16.1849]
[1723649528748,39.68,145.61,145.56,16.1849]
[1723649529364,39.68,145.59,145.55,6.6384]
[1723649529976,47.69,145.58,145.52,15.7483]
[1723649530265,47.69,145.55,145.51,6.5595]
[1723649531966,0.12549,145.57,145.51,6.5595]
[1723649532175,47.69,145.58,145.51,6.5595]
[1723649532870,47.69,145.61,145.51,6.5595]
[1723649533082,67.69,145.61,145.52,45.12549]
[1723649533947,47.69,145.58,145.51,6.5595]
[1723649534156,0.12549,145.57,145.51,6.5595]
[1723649534379,47.69,145.55,145.51,6.5595]
[1723649539363,47.69,145.58,145.51,6.5595]
[1723649539569,47.69,145.58,145.52,45.12549]
[1723649539779,47.69,145.61,145.52,45.12549]
[1723649540282,87.69,145.61,145.51,6.5595]
[1723649540688,47.69,145.61,145.52,45.12549]
[1723649541185,47.69,145.61,145.53,0.12549]
[1723649541499,47.69,145.67,145.54,6.2474]
[1723649541664,47.69,145.67,145.55,45.50196]
[1723649542706,56.28867551,145.7,145.57,0.12549]
[1723649542859,47.69,145.7,145.6,0.12549]
[1723649543060,47.69,145.7,145.6,0.37647]
[1723649543291,87.69,145.7,145.6,45.12549]
[1723649543775,76.28867551,145.7,145.6,45.0]
[1723649543962,67.69,145.7,145.61,0.25098]
[1723649545498,87.69,145.7,145.61,0.25098]
[1723649545796,87.69,145.7,145.6,45.0]
[1723649545797,0.25098,145.69,145.6,45.0]
[1723649546676,47.69,145.7,145.61,0.25098]
[1723649546880,47.69,145.7,145.62,0.12549]
[1723649547280,67.69,145.74,145.61,0.25098]
[1723649547481,67.69,145.74,145.62,0.12549]
[1723649548193,47.69,145.74,145.64,16.74369]
[1723649548372,47.69,145.74,145.65,45.37647]
[1723649549885,20.0,145.71,145.64,16.6182]
[1723649550182,47.69,145.7,145.64,16.6182]
[1723649551391,47.69,145.67,145.63,6.6396]
[1723649551883,47.69,145.67,145.51,24.65733716]
[1723649552200,47.69,145.67,145.52,6.3184]
[1723649552902,0.12549,145.66,145.52,6.3184]
[1723649553200,47.69,145.64,145.53,20.0]
[1723649553401,47.69,145.64,145.52,6.3184]
[1723649553778,47.69,145.67,145.52,6.3184]
[1723649553983,47.69,145.67,145.55,6.113]
[1723649554677,47.69,145.67,145.56,0.37647]
[1723649554892,47.69,145.67,145.57,0.12549]
[1723649555093,47.69,145.67,145.57,0.25098]
[1723649555298,47.69,145.67,145.58,0.37647]
[1723649555534,54.25528891,145.7,145.6,6.3775]
[1723649555697,47.69,145.7,145.62,15.4927]
[1723649556305,47.69,145.7,145.63,45.0]
[1723649557383,0.12549,145.69,145.62,15.4927]
[1723649557580,0.37647,145.69,145.62,15.4927]
[1723649557992,47.69,145.7,145.62,15.4927]
[1723649559214,47.69,145.7,145.63,45.0]
[1723649559390,67.69,145.7,145.63,45.0]
[1723649559595,47.69,145.67,145.62,15.4927]
[1723649559799,47.69,145.64,145.6,6.3775]
[1723649561484,47.69,145.67,145.6,6.3775]
[1723649561908,6.56528891,145.69,145.6,6.3775]
[1723649562203,47.69,145.7,145.6,6.3775]
[1723649562389,67.69,145.67,145.6,6.3775]
[1723649562585,47.69,145.64,145.6,6.3775]
[1723649563017,47.69,145.67,145.6,6.3775]
[1723649564304,47.69,145.64,145.6,6.3775]
[1723649564511,67.69,145.64,145.58,16.1981]
[1723649564701,47.69,145.61,145.58,16.1981]
[1723649564902,47.69,145.64,145.58,16.1981]
[1723649565088,47.69,145.67,145.58,16.1981]
[1723649565294,20.12549,145.66,145.58,16.1981]
[1723649565805,47.69,145.62,145.56,6.3529]
[1723649565991,39.72,145.6,145.56,6.3529]
[1723649568613,20.37647,145.65,145.56,6.3529]
[1723649568614,39.72,145.63,145.56,6.3529]
[1723649569111,6.56528891,145.66,145.57,0.12549]
[1723649569334,39.72,145.69,145.57,45.37647]
[1723649569489,39.72,145.69,145.58,0.12549]
[1723649569824,39.72,145.69,145.6,22.2975]
[1723649570030,47.6,145.72,145.61,45.37647]
[1723649571818,8.59867551,145.75,145.63,6.6252]
[1723649571819,47.6,145.75,145.63,6.6252]
[1723649571996,47.6,145.75,145.64,45.50196]
[1723649572500,47.6,145.72,145.64,45.37647]
[1723649572896,47.6,145.72,145.64,45.25098]
[1723649573716,47.6,145.72,145.65,0.12549]
[1723649574603,23.28881776,145.77,145.66,15.197]
[1723649574604,47.6,145.75,145.66,15.197]
[1723649574809,47.6,145.75,145.67,45.37647]
[1723649576196,47.6,145.75,145.68,6.5946]
[1723649576506,47.6,145.75,145.69,45.0]
[1723649577117,47.6,145.75,145.68,6.5946]
[1723649577310,47.6,145.72,145.68,6.5946]
[1723649578221,47.6,145.69,145.66,15.197]
[1723649579110,47.6,145.69,145.64,6.5946]
[1723649580001,47.6,145.72,145.64,6.5946]
[1723649580701,47.6,145.72,145.65,0.12549]
[1723649581105,47.6,145.72,145.65,45.37647]
[1723649581422,47.6,145.72,145.65,45.25098]
[1723649581620,47.6,145.72,145.65,0.12549]
[1723649581843,47.6,145.66,145.64,6.5946]
[1723649582826,47.6,145.66,145.62,15.619]
[1723649583335,47.6,145.66,145.6,6.4712]
[1723649586342,47.6,145.63,145.6,6.4712]